fUST/lending_fUST_20240721
["ID","MTS","AMOUNT","RATE_DAILY","PERIOD"]
[332804446,1721537439371,-500.0,0.00013698,2]
[332804448,1721537439381,-500.0,0.00013698,2]
[332804450,1721537439392,-500.0,0.00013698,2]
[332804452,1721537439403,-500.0,0.00013698,2]
[332804454,1721537439415,-500.0,0.00013698,2]
[332804457,1721537439428,-500.0,0.00013698,2]
[332804459,1721537439439,-650.0,0.00013698,2]
[332804461,1721537439450,-235.8555937,0.00013698,2]
[332804463,1721537439461,-1199.81686154,0.00013698,2]
[332804465,1721537439471,-1199.81686154,0.00013698,2]
[332804467,1721537439483,-1199.81686154,0.00013698,2]
[332804469,1721537439494,-1199.81686154,0.00013698,2]
[332804471,1721537439504,-1199.81686154,0.00013698,2]
[332804473,1721537439515,-1199.81686154,0.00013698,2]
[332804475,1721537439526,-1199.81686154,0.00013698,2]
[332804477,1721537439537,-1199.81686154,0.00013698,2]
[332804480,1721537439548,-1199.81686154,0.00013698,2]
[332804482,1721537439559,-1199.81686154,0.00013698,2]
[332804484,1721537439569,-1199.81686154,0.00013698,2]
[332804486,1721537439581,-1199.81686154,0.00013698,2]
[332804488,1721537439591,-500.0,0.00013698,2]
[332804490,1721537439603,-1199.81686152,0.00013698,2]
[332804492,1721537439614,-502.711129,0.00013698,2]
[332804494,1721537439625,-525.72198129,0.00013698,2]
[332804496,1721537439638,-500.0,0.00013698,2]
[332804498,1721537439648,-500.0,0.00013698,2]
[332804500,1721537439659,-500.0,0.00013698,2]
[332804501,1721537439674,-500.0,0.00013698,2]
[332804503,1721537439685,-500.9166556,0.00013698,2]
[332804505,1721537439696,-500.0,0.00013698,2]
[332804507,1721537439706,-500.7971441,0.00013698,2]
[332804509,1721537439719,-635.20312292,0.00013698,2]
[332804511,1721537439730,-259.81166719,0.00013698,2]
[332804513,1721537439741,-502.57095392,0.00013698,2]
[332804515,1721537439752,-520.34,0.00013698,2]
[332804517,1721537439762,-500.0,0.00013698,2]
[332804519,1721537439773,-500.0,0.00013698,2]
[332804521,1721537439783,-500.0,0.00013698,2]
[332804523,1721537439793,-500.0,0.00013698,2]
[332804525,1721537439802,-500.0,0.00013698,2]
[332804527,1721537439811,-500.0,0.00013698,2]
[332804529,1721537439820,-580.74,0.00013698,2]
[332804531,1721537439830,-500.0,0.00013698,2]
[332804533,1721537439839,-506.405325,0.00013698,2]
[332804535,1721537439848,-500.0,0.00013698,2]
[332804536,1721537439857,-500.0,0.00013698,2]
[332804538,1721537439866,-502.58801939,0.00013698,2]
[332804540,1721537439876,-259.96589553,0.00013698,2]
[332804542,1721537439885,-500.0,0.00013698,2]
[332804575,1721537440203,-500.0,0.00013698,2]
[332804578,1721537440225,-500.0,0.00013698,2]
[332804581,1721537440242,-500.0,0.00013698,2]
[332804583,1721537440253,-500.97080716,0.00013698,2]
[332804585,1721537440263,-500.0,0.00013698,2]
[332804586,1721537440272,-500.0,0.00013698,2]
[332804588,1721537440281,-500.0,0.00013698,2]
[332804590,1721537440290,-483.36756744,0.00013698,2]
[332804592,1721537440299,-500.0,0.00013698,2]
[332804594,1721537440309,-500.0,0.00013698,2]
[332804596,1721537440318,-500.0,0.00013698,2]
[332804597,1721537440328,-500.0,0.00013698,2]
[332804600,1721537440339,-271.74760283,0.00013698,2]
[332804602,1721537440349,-556.1923739,0.00013698,2]
[332804604,1721537440359,-500.0,0.00013698,2]
[332804606,1721537440372,-1809.04,0.00013698,2]
[332804608,1721537440383,-1895.26,0.00013698,2]
[332804610,1721537440394,-500.0,0.00013698,2]
[332804612,1721537440404,-500.0,0.00013698,2]
[332804614,1721537440416,-544.25,0.00013698,2]
[332804616,1721537440426,-500.0,0.00013698,2]
[332804618,1721537440435,-500.0,0.00013698,2]
[332804620,1721537440446,-437.67194213,0.00013698,2]
[332804622,1721537440456,-534.93,0.00013698,2]
[332804624,1721537440466,-500.0,0.00013698,2]
[332804626,1721537440476,-500.0,0.00013698,2]
[332804628,1721537440486,-500.0,0.00013698,2]
[332804630,1721537440496,-500.0,0.00013698,2]
[332804632,1721537440507,-500.0,0.00013698,2]
[332804634,1721537440517,-500.0,0.00013698,2]
[332804636,1721537440527,-500.0,0.00013698,2]
[332804638,1721537440537,-502.0283174,0.00013698,2]
[332804640,1721537440546,-500.0,0.00013698,2]
[332804642,1721537440555,-500.0,0.00013698,2]
[332804644,1721537440565,-522.19846751,0.00013698,2]
[332804646,1721537440576,-500.0,0.00013698,2]
[332804648,1721537440585,-1221.06,0.00013698,2]
[332804650,1721537440596,-500.0,0.00013698,2]
[332804652,1721537440605,-500.0,0.00013698,2]
[332804654,1721537440614,-500.0,0.00013698,2]
[332804655,1721537440624,-500.0,0.00013698,2]
[332804657,1721537440635,-633.18,0.00013698,2]
[332804659,1721537440644,-500.0,0.00013698,2]
[332804661,1721537440653,-513.23170006,0.00013698,2]
[332804663,1721537440662,-500.0,0.00013698,2]
[332804664,1721537440672,-500.0,0.00013698,2]
[332804666,1721537440681,-500.0,0.00013698,2]
[332804668,1721537440690,-502.90682651,0.00013698,2]
[332804670,1721537440700,-500.0,0.00013698,2]
[332804671,1721537440709,-500.0,0.00013698,2]
[332804672,1721537440719,-500.0,0.00013698,2]
[332804673,1721537440739,-500.0,0.00013698,2]
[332804674,1721537440749,-500.0,0.00013698,2]
[332804675,1721537440759,-500.0,0.00013698,2]
[332804676,1721537440769,-500.81339104,0.00013698,2]
[332804677,1721537440779,-500.0,0.00013698,2]
[332804678,1721537440788,-500.0,0.00013698,2]
[332804679,1721537440798,-500.0,0.00013698,2]
[332804680,1721537440808,-500.0,0.00013698,2]
[332804681,1721537440818,-500.0,0.00013698,2]
[332804682,1721537440827,-500.0,0.00013698,2]
[332804683,1721537440837,-500.0,0.00013698,2]
[332804684,1721537440846,-500.0,0.00013698,2]
[332804685,1721537440856,-500.0,0.00013698,2]
[332804686,1721537440865,-500.0,0.00013698,2]
[332804687,1721537440875,-500.0,0.00013698,2]
[332804688,1721537440884,-500.0,0.00013698,2]
[332804689,1721537440893,-500.0,0.00013698,2]
[332804690,1721537440903,-500.0,0.00013698,2]
[332804691,1721537440916,-525.86400659,0.00013698,2]
[332804692,1721537440927,-500.0,0.00013698,2]
[332804693,1721537440937,-558.09,0.00013698,2]
[332804694,1721537440948,-500.0,0.00013698,2]
[332804695,1721537440958,-500.0,0.00013698,2]
[332804696,1721537440967,-500.0,0.00013698,2]
[332804697,1721537440977,-500.0,0.00013698,2]
[332804698,1721537440987,-508.74971259,0.00013698,2]
[332804699,1721537440996,-500.0,0.00013698,2]
[332804700,1721537441007,-506.96922315,0.00013698,2]
[332804701,1721537441016,-500.0,0.00013698,2]
[332804702,1721537441027,-500.0,0.00013698,2]
[332804703,1721537441037,-503.22469802,0.00013698,2]
[332804704,1721537441046,-500.0,0.00013698,2]
[332804705,1721537441057,-500.0,0.00013698,2]
[332804706,1721537441067,-1031.92,0.00013698,2]
[332804707,1721537441077,-500.0,0.00013698,2]
[332804708,1721537441087,-500.0,0.00013698,2]
[332804709,1721537441096,-690.88,0.00013698,2]
[332804710,1721537441107,-857.4,0.00013698,2]
[332804711,1721537441116,-577.04,0.00013698,2]
[332804712,1721537441127,-500.0,0.00013698,2]
[332804713,1721537441137,-509.6950994,0.00013698,2]
[332804714,1721537441147,-500.0,0.00013698,2]
[332804715,1721537441158,-500.0,0.00013698,2]
[332804716,1721537441168,-457.76178401,0.00013698,2]
[332804717,1721537441178,-500.0,0.00013698,2]
[332804718,1721537441188,-500.0,0.00013698,2]
[332804719,1721537441199,-500.0,0.00013698,2]
[332804720,1721537441208,-500.0,0.00013698,2]
[332804721,1721537441218,-500.0,0.00013698,2]
[332804722,1721537441228,-504.64998532,0.00013698,2]
[332804723,1721537441238,-502.29925953,0.00013698,2]
[332804724,1721537441249,-500.0,0.00013698,2]
[332804725,1721537441259,-500.0,0.00013698,2]
[332804726,1721537441270,-775.33,0.00013698,2]
[332804727,1721537441282,-500.0,0.00013698,2]
[332804728,1721537441293,-500.0,0.00013698,2]
[332804729,1721537441304,-500.0,0.00013698,2]
[332804730,1721537441313,-500.0,0.00013698,2]
[332804731,1721537441322,-500.0,0.00013698,2]
[332804732,1721537441332,-500.0,0.00013698,2]
[332804733,1721537441342,-600.01472195,0.00013698,2]
[332804734,1721537441351,-500.0,0.00013698,2]
[332804735,1721537441361,-500.0,0.00013698,2]
[332804736,1721537441370,-500.0,0.00013698,2]
[332804737,1721537441379,-297.39668351,0.00013698,2]
[332804738,1721537441390,-185.12499059,0.00013698,2]
[332804739,1721537441399,-500.0,0.00013698,2]
[332804740,1721537441409,-500.0,0.00013698,2]
[332804741,1721537441419,-500.0,0.00013698,2]
[332804742,1721537441428,-500.0,0.00013698,2]
[332804743,1721537441437,-500.0,0.00013698,2]
[332804744,1721537441446,-500.0,0.00013698,2]
[332804745,1721537441456,-835.37,0.00013698,2]
[332804746,1721537441466,-500.0,0.00013698,2]
[332804747,1721537441475,-537.44918105,0.00013698,2]
[332804748,1721537441485,-500.0,0.00013698,2]
[332804749,1721537441495,-500.0,0.00013698,2]
[332804750,1721537441505,-500.0,0.00013698,2]
[332804751,1721537441515,-970.09,0.00013698,2]
[332804752,1721537441525,-500.0,0.00013698,2]
[332804753,1721537441534,-500.0,0.00013698,2]
[332804754,1721537441544,-500.0,0.00013698,2]
[332804755,1721537441556,-514.31104745,0.00013698,2]
[332804756,1721537441567,-500.0,0.00013698,2]
[332804757,1721537441577,-500.0,0.00013698,2]
[332804758,1721537441586,-500.0,0.00013698,2]
[332804760,1721537441595,-500.0,0.00013698,2]
[332804762,1721537441605,-500.0,0.00013698,2]
[332804764,1721537441614,-2579.77,0.00013698,2]
[332804766,1721537441625,-500.0,0.00013698,2]
[332804768,1721537441635,-500.0,0.00013698,2]
[332804771,1721537441645,-500.0,0.00013698,2]
[332804773,1721537441655,-506.56216054,0.00013698,2]
[332804774,1721537441664,-500.0,0.00013698,2]
[332804775,1721537441675,-500.0,0.00013698,2]
[332804776,1721537441684,-501.09062713,0.00013698,2]
[332804777,1721537441694,-698.08,0.00013698,2]
[332804778,1721537441703,-500.0,0.00013698,2]
[332804779,1721537441714,-500.0,0.00013698,2]
[332804780,1721537441723,-551.81,0.00013698,2]
[332804781,1721537441733,-500.0,0.00013698,2]
[332804782,1721537441742,-500.0,0.00013698,2]
[332804783,1721537441751,-500.0,0.00013698,2]
[332804784,1721537441760,-500.0,0.00013698,2]
[332804785,1721537441769,-500.0,0.00013698,2]
[332804786,1721537441779,-511.49784745,0.00013698,2]
[332804787,1721537441789,-500.0,0.00013698,2]
[332804788,1721537441798,-500.0,0.00013698,2]
[332804789,1721537441808,-500.0,0.00013698,2]
[332804790,1721537441817,-500.0,0.00013698,2]
[332804791,1721537441826,-500.0,0.00013698,2]
[332804792,1721537441835,-516.03261185,0.00013698,2]
[332804793,1721537441845,-500.0,0.00013698,2]
[332804794,1721537441855,-502.47704321,0.00013698,2]
[332804795,1721537441865,-515.52,0.00013698,2]
[332804796,1721537441876,-500.0,0.00013698,2]
[332804797,1721537441888,-500.0,0.00013698,2]
[332804798,1721537441899,-500.0,0.00013698,2]
[332804799,1721537441911,-500.0,0.00013698,2]
[332804800,1721537441923,-199.22803893,0.00013698,2]
[332804801,1721537441936,-500.0,0.00013698,2]
[332804802,1721537441947,-500.0,0.00013698,2]
[332804803,1721537441958,-1472.91,0.00013698,2]
[332804804,1721537441968,-621.17,0.00013698,2]
[332804805,1721537441979,-2439.07,0.00013698,2]
[332804806,1721537441990,-500.0,0.00013698,2]
[332804807,1721537442002,-500.0,0.00013698,2]
[332804808,1721537442013,-777.01,0.00013698,2]
[332804809,1721537442025,-500.0,0.00013698,2]
[332804810,1721537442037,-500.0,0.00013698,2]
[332804811,1721537442047,-519.63091483,0.00013698,2]
[332804812,1721537442058,-503.23587098,0.00013698,2]
[332804813,1721537442068,-500.0,0.00013698,2]
[332804814,1721537442078,-2752.59,0.00013698,2]
[332804815,1721537442090,-500.0,0.00013698,2]
[332804816,1721537442100,-2706.19,0.00013698,2]
[332804817,1721537442110,-399.73560951,0.00013698,2]
[332804818,1721537442120,-500.0,0.00013698,2]
[332804819,1721537442130,-501.33508252,0.00013698,2]
[332804820,1721537442140,-500.0,0.00013698,2]
[332804821,1721537442149,-370.00262806,0.00013698,2]
[332804822,1721537442160,-931.1,0.00013698,2]
[332804823,1721537442170,-500.0,0.00013698,2]
[332804824,1721537442180,-500.0,0.00013698,2]
[332804825,1721537442190,-500.0,0.00013698,2]
[332804826,1721537442200,-500.0,0.00013698,2]
[332804828,1721537442212,-500.0,0.00013698,2]
[332804830,1721537442221,-500.0,0.00013698,2]
[332804832,1721537442231,-500.0,0.00013698,2]
[332804834,1721537442241,-500.0,0.00013698,2]
[332804836,1721537442250,-500.0,0.00013698,2]
[332804838,1721537442260,-888.28,0.00013698,2]
[332804840,1721537442270,-1146.38,0.00013698,2]
[332804842,1721537442279,-605.69,0.00013698,2]
[332804844,1721537442289,-500.0,0.00013698,2]
[332804846,1721537442298,-504.86194767,0.00013698,2]
[332804848,1721537442308,-500.0,0.00013698,2]
[332804850,1721537442318,-500.0,0.00013698,2]
[332804852,1721537442327,-509.39,0.00013698,2]
[332804855,1721537442337,-527.46022515,0.00013698,2]
[332804857,1721537442347,-500.0,0.00013698,2]
[332804859,1721537442357,-2056.1,0.00013698,2]
[332804861,1721537442366,-500.0,0.00013698,2]
[332804863,1721537442376,-500.0,0.00013698,2]
[332804865,1721537442385,-500.0,0.00013698,2]
[332804867,1721537442395,-500.0,0.00013698,2]
[332804869,1721537442405,-624.2,0.00013698,2]
[332804871,1721537442414,-500.0,0.00013698,2]
[332804873,1721537442424,-500.0,0.00013698,2]
[332804875,1721537442434,-500.0,0.00013698,2]
[332804877,1721537442444,-500.0,0.00013698,2]
[332804879,1721537442456,-500.0,0.00013698,2]
[332804881,1721537442466,-500.0,0.00013698,2]
[332804883,1721537442476,-500.0,0.00013698,2]
[332804885,1721537442486,-500.0,0.00013698,2]
[332804887,1721537442495,-500.0,0.00013698,2]
[332804890,1721537442505,-500.0,0.00013698,2]
[332804892,1721537442515,-758.96,0.00013698,2]
[332804893,1721537442525,-500.0,0.00013698,2]
[332804896,1721537442535,-500.0,0.00013698,2]
[332804898,1721537442545,-502.06907572,0.00013698,2]
[332804900,1721537442554,-500.0,0.00013698,2]
[332804902,1721537442564,-1063.01,0.00013698,2]
[332804904,1721537442573,-500.0,0.00013698,2]
[332804906,1721537442583,-500.0,0.00013698,2]
[332804908,1721537442592,-500.0,0.00013698,2]
[332804910,1721537442601,-502.00479006,0.00013698,2]
[332804912,1721537442611,-564.09,0.00013698,2]
[332804914,1721537442622,-500.0,0.00013698,2]
[332804916,1721537442633,-500.0,0.00013698,2]
[332804918,1721537442644,-500.0,0.00013698,2]
[332804920,1721537442653,-500.0,0.00013698,2]
[332804922,1721537442663,-500.0,0.00013698,2]
[332804924,1721537442672,-500.0,0.00013698,2]
[332804926,1721537442681,-500.0,0.00013698,2]
[332804928,1721537442691,-500.0,0.00013698,2]
[332804930,1721537442703,-617.71,0.00013698,2]
[332804932,1721537442713,-631.7,0.00013698,2]
[332804935,1721537442723,-806.1,0.00013698,2]
[332804937,1721537442732,-500.0,0.00013698,2]
[332804939,1721537442742,-500.0,0.00013698,2]
[332804941,1721537442751,-502.44781403,0.00013698,2]
[332804943,1721537442762,-500.0,0.00013698,2]
[332804945,1721537442772,-500.0,0.00013698,2]
[332804947,1721537442782,-500.0,0.00013698,2]
[332804949,1721537442793,-501.53767902,0.00013698,2]
[332804951,1721537442803,-500.0,0.00013698,2]
[332804954,1721537442815,-500.0,0.00013698,2]
[332804956,1721537442824,-4000.91,0.00013698,2]
[332804958,1721537442836,-500.0,0.00013698,2]
[332804960,1721537442847,-500.0,0.00013698,2]
[332804962,1721537442857,-500.0,0.00013698,2]
[332804965,1721537442867,-831.67,0.00013698,2]
[332804968,1721537442876,-500.0,0.00013698,2]
[332804972,1721537442886,-558.39,0.00013698,2]
[332804977,1721537442910,-578.55,0.00013698,2]
[332804980,1721537442920,-1486.09,0.00013698,2]
[332804984,1721537442932,-556.72,0.00013698,2]
[332804987,1721537442943,-500.0,0.00013698,2]
[332804990,1721537442953,-500.0,0.00013698,2]
[332804994,1721537442964,-500.0,0.00013698,2]
[332804998,1721537442974,-1811.52,0.00013698,2]
[332805002,1721537442985,-1120.1,0.00013698,2]
[332805005,1721537442995,-500.0,0.00013698,2]
[332805008,1721537443006,-505.23104049,0.00013698,2]
[332805012,1721537443016,-1411.83,0.00013698,2]
[332805015,1721537443026,-502.40607117,0.00013698,2]
[332805018,1721537443037,-500.0,0.00013698,2]
[332805021,1721537443048,-500.0,0.00013698,2]
[332805025,1721537443058,-500.0,0.00013698,2]
[332805028,1721537443068,-500.0,0.00013698,2]
[332805031,1721537443079,-500.0,0.00013698,2]
[332805034,1721537443089,-500.0,0.00013698,2]
[332805036,1721537443099,-533.14,0.00013698,2]
[332805039,1721537443110,-508.41832404,0.00013698,2]
[332805041,1721537443120,-592.72339652,0.00013698,2]
[332805043,1721537443130,-500.0,0.00013698,2]
[332805045,1721537443141,-500.0,0.00013698,2]
[332805047,1721537443151,-1755.58,0.00013698,2]
[332805049,1721537443162,-500.0,0.00013698,2]
[332805052,1721537443175,-614.64,0.00013698,2]
[332805054,1721537443186,-500.0,0.00013698,2]
[332805056,1721537443199,-500.0,0.00013698,2]
[332805059,1721537443210,-631.49,0.00013698,2]
[332805061,1721537443220,-789.16,0.00013698,2]
[332805063,1721537443230,-500.0,0.00013698,2]
[332805065,1721537443240,-1223.88,0.00013698,2]
[332805067,1721537443250,-500.0,0.00013698,2]
[332805069,1721537443260,-500.0,0.00013698,2]
[332805071,1721537443272,-500.0,0.00013698,2]
[332805073,1721537443284,-500.0,0.00013698,2]
[332805075,1721537443296,-613.67,0.00013698,2]
[332805078,1721537443307,-500.0,0.00013698,2]
[332805080,1721537443317,-500.0,0.00013698,2]
[332805082,1721537443330,-500.0,0.00013698,2]
[332805084,1721537443340,-504.61777039,0.00013698,2]
[332805086,1721537443350,-500.0,0.00013698,2]
[332805089,1721537443362,-500.0,0.00013698,2]
[332805091,1721537443371,-504.28120277,0.00013698,2]
[332805093,1721537443382,-500.0,0.00013698,2]
[332805095,1721537443392,-718.49,0.00013698,2]
[332805097,1721537443404,-500.0,0.00013698,2]
[332805099,1721537443415,-850.42,0.00013698,2]
[332805101,1721537443426,-500.0,0.00013698,2]
[332805103,1721537443436,-500.0,0.00013698,2]
[332805105,1721537443446,-2621.65,0.00013698,2]
[332805107,1721537443457,-500.0,0.00013698,2]
[332805109,1721537443467,-500.0,0.00013698,2]
[332805112,1721537443477,-500.0,0.00013698,2]
[332805114,1721537443489,-500.0,0.00013698,2]
[332805116,1721537443500,-1693.08,0.00013698,2]
[332805118,1721537443510,-500.0,0.00013698,2]
[332805120,1721537443521,-500.0,0.00013698,2]
[332805122,1721537443534,-500.0,0.00013698,2]
[332805125,1721537443544,-500.0,0.00013698,2]
[332805127,1721537443554,-500.0,0.00013698,2]
[332805129,1721537443564,-500.0,0.00013698,2]
[332805131,1721537443573,-500.0,0.00013698,2]
[332805133,1721537443584,-500.0,0.00013698,2]
[332805135,1721537443596,-500.0,0.00013698,2]
[332805137,1721537443606,-500.0,0.00013698,2]
[332805139,1721537443618,-500.0,0.00013698,2]
[332805141,1721537443631,-500.0,0.00013698,2]
[332805143,1721537443644,-500.0,0.00013698,2]
[332805145,1721537443654,-500.0,0.00013698,2]
[332805148,1721537443664,-550.42298283,0.00013698,2]
[332805150,1721537443674,-500.0,0.00013698,2]
[332805152,1721537443686,-500.0,0.00013698,2]
[332805154,1721537443699,-513.01851565,0.00013698,2]
[332805156,1721537443710,-524.72,0.00013698,2]
[332805158,1721537443720,-500.0,0.00013698,2]
[332805160,1721537443729,-1686.5,0.00013698,2]
[332805182,1721537443943,-517.81637955,0.00013698,2]
[332805184,1721537443954,-500.0,0.00013698,2]
[332805187,1721537443966,-603.44,0.00013698,2]
[332805189,1721537443975,-511.67133738,0.00013698,2]
[332805191,1721537443987,-310.81795827,0.00013698,2]
[332805193,1721537443997,-507.09727474,0.00013698,2]
[332805195,1721537444008,-500.0,0.00013698,2]
[332805197,1721537444020,-500.0,0.00013698,2]
[332805199,1721537444031,-574.15,0.00013698,2]
[332805201,1721537444041,-500.0,0.00013698,2]
[332805204,1721537444051,-500.0,0.00013698,2]
[332805206,1721537444060,-844.25,0.00013698,2]
[332805208,1721537444070,-500.0,0.00013698,2]
[332805210,1721537444080,-617.37745255,0.00013698,2]
[332805212,1721537444090,-500.0,0.00013698,2]
[332805214,1721537444100,-500.0,0.00013698,2]
[332805216,1721537444110,-500.0,0.00013698,2]
[332805218,1721537444122,-515.62998071,0.00013698,2]
[332805220,1721537444132,-1247.71,0.00013698,2]
[332805222,1721537444143,-1714.81,0.00013698,2]
[332805224,1721537444153,-500.0,0.00013698,2]
[332805226,1721537444162,-500.0,0.00013698,2]
[332805228,1721537444172,-500.0,0.00013698,2]
[332805230,1721537444182,-500.0,0.00013698,2]
[332805232,1721537444192,-291.18737094,0.00013698,2]
[332805234,1721537444202,-500.0,0.00013698,2]
[332805236,1721537444212,-1962.59,0.00013698,2]
[332805238,1721537444223,-500.0,0.00013698,2]
[332805240,1721537444233,-500.0,0.00013698,2]
[332805243,1721537444244,-1976.44,0.00013698,2]
[332805245,1721537444255,-500.0,0.00013698,2]
[332805247,1721537444266,-500.0,0.00013698,2]
[332805249,1721537444276,-500.0,0.00013698,2]
[332805251,1721537444287,-500.0,0.00013698,2]
[332805253,1721537444296,-858.14,0.00013698,2]
[332805255,1721537444306,-500.0,0.00013698,2]
[332805257,1721537444318,-1554.0,0.00013698,2]
[332805260,1721537444329,-502.75342232,0.00013698,2]
[332805262,1721537444338,-500.0,0.00013698,2]
[332805264,1721537444348,-505.38131075,0.00013698,2]
[332805266,1721537444358,-1624.67,0.00013698,2]
[332805268,1721537444367,-501.2016491,0.00013698,2]
[332805270,1721537444378,-500.0,0.00013698,2]
[332805272,1721537444388,-500.0,0.00013698,2]
[332805274,1721537444398,-500.0,0.00013698,2]
[332805276,1721537444408,-500.0,0.00013698,2]
[332805278,1721537444418,-500.0,0.00013698,2]
[332805280,1721537444428,-500.0,0.00013698,2]
[332805282,1721537444438,-668.01,0.00013698,2]
[332805284,1721537444448,-500.0,0.00013698,2]
[332805286,1721537444459,-846.94,0.00013698,2]
[332805288,1721537444469,-525.67,0.00013698,2]
[332805290,1721537444479,-500.0,0.00013698,2]
[332805292,1721537444489,-548.5574355,0.00013698,2]
[332805294,1721537444500,-191.97913078,0.00013698,2]
[332805297,1721537444510,-549.44249612,0.00013698,2]
[332805299,1721537444520,-500.0,0.00013698,2]
[332805301,1721537444530,-763.95,0.00013698,2]
[332805303,1721537444540,-169.1445557,0.00013698,2]
[332805305,1721537444550,-500.0,0.00013698,2]
[332805307,1721537444559,-500.0,0.00013698,2]
[332805309,1721537444569,-500.0,0.00013698,2]
[332805311,1721537444580,-500.0,0.00013698,2]
[332805313,1721537444590,-500.0,0.00013698,2]
[332805315,1721537444600,-526.16960824,0.00013698,2]
[332805317,1721537444610,-503.48450541,0.00013698,2]
[332805319,1721537444620,-869.65,0.00013698,2]
[332805321,1721537444629,-500.0,0.00013698,2]
[332805323,1721537444642,-500.0,0.00013698,2]
[332805325,1721537444652,-1097.27,0.00013698,2]
[332805327,1721537444661,-500.6716079,0.00013698,2]
[332805329,1721537444671,-500.0,0.00013698,2]
[332805331,1721537444680,-500.0,0.00013698,2]
[332805333,1721537444690,-500.0,0.00013698,2]
[332805335,1721537444700,-509.5921109,0.00013698,2]
[332805337,1721537444710,-504.47672826,0.00013698,2]
[332805339,1721537444720,-500.0,0.00013698,2]
[332805341,1721537444729,-500.0,0.00013698,2]
[332805343,1721537444740,-1587.64,0.00013698,2]
[332805345,1721537444750,-573.92873852,0.00013698,2]
[332805348,1721537444760,-735.22,0.00013698,2]
[332805350,1721537444770,-500.0,0.00013698,2]
[332805352,1721537444780,-989.42,0.00013698,2]
[332805354,1721537444789,-915.6,0.00013698,2]
[332805356,1721537444798,-500.0,0.00013698,2]
[332805358,1721537444808,-500.0,0.00013698,2]
[332805360,1721537444818,-3609.17,0.00013698,2]
[332805362,1721537444827,-861.29,0.00013698,2]
[332805364,1721537444837,-500.0,0.00013698,2]
[332805366,1721537444847,-1125.95,0.00013698,2]
[332805368,1721537444858,-7203.23,0.00013698,2]
[332805370,1721537444868,-500.0,0.00013698,2]
[332805372,1721537444878,-1357.46,0.00013698,2]
[332805374,1721537444887,-500.0,0.00013698,2]
[332805375,1721537444898,-500.0,0.00013698,2]
[332805377,1721537444908,-500.0,0.00013698,2]
[332805379,1721537444918,-500.0,0.00013698,2]
[332805380,1721537444928,-500.0,0.00013698,2]
[332805381,1721537444937,-500.0,0.00013698,2]
[332805382,1721537444947,-500.0,0.00013698,2]
[332805383,1721537444959,-500.0,0.00013698,2]
[332805384,1721537444969,-500.0,0.00013698,2]
[332805386,1721537444979,-500.0,0.00013698,2]
[332805387,1721537444989,-500.0,0.00013698,2]
[332805388,1721537444999,-500.0,0.00013698,2]
[332805389,1721537445009,-500.0,0.00013698,2]
[332805390,1721537445019,-500.0,0.00013698,2]
[332805391,1721537445029,-500.0,0.00013698,2]